fUST/lending_fUST_20250208
["ID","MTS","AMOUNT","RATE_DAILY","PERIOD"]
[352182451,1738979451849,-505.16015023,0.00011369,2]
[352182452,1738979451858,-503.252898,0.00011369,2]
[352182453,1738979451867,-500.0,0.00011369,2]
[352182454,1738979451876,-500.0,0.00011369,2]
[352182455,1738979451886,-505.90865156,0.00011369,2]
[352182456,1738979451895,-500.0,0.00011369,2]
[352182457,1738979451904,-502.96487902,0.00011369,2]
[352182458,1738979451914,-500.0,0.00011369,2]
[352182459,1738979451923,-500.0,0.00011369,2]
[352182460,1738979451932,-937.71,0.00011369,2]
[352182461,1738979451942,-500.0,0.00011369,2]
[352182462,1738979451955,-502.9511576,0.00011369,2]
[352182463,1738979451965,-500.0,0.00011369,2]
[352182464,1738979451974,-500.0,0.00011369,2]
[352182465,1738979451983,-151.0,0.00011369,2]
[352182466,1738979451993,-515.60640767,0.00011369,2]
[352182467,1738979452003,-500.0,0.00011369,2]
[352182468,1738979452012,-500.0,0.00011369,2]
[352182469,1738979452023,-771.92,0.00011369,2]
[352182470,1738979452032,-500.0,0.00011369,2]
[352182471,1738979452042,-500.0,0.00011369,2]
[352182472,1738979452051,-500.0,0.00011369,2]
[352182473,1738979452060,-2484.5,0.00011369,2]
[352182474,1738979452069,-500.0,0.00011369,2]
[352182475,1738979452078,-502.78085355,0.00011369,2]
[352182476,1738979452088,-503.02695759,0.00011369,2]
[352182477,1738979452098,-572.57,0.00011369,2]
[352182478,1738979452107,-500.0,0.00011369,2]
[352182479,1738979452116,-500.0,0.00011369,2]
[352182480,1738979452126,-500.0,0.00011369,2]
[352182481,1738979452135,-10233.27,0.00011369,2]
[352182482,1738979452144,-1134.68,0.00011369,2]
[352182483,1738979452153,-530.41,0.00011369,2]
[352182484,1738979452163,-502.4613862,0.00011369,2]
[352182485,1738979452172,-500.0,0.00011369,2]
[352182486,1738979452182,-500.0,0.00011369,2]
[352182487,1738979452192,-500.0,0.00011369,2]
[352182488,1738979452203,-1264.89,0.00011369,2]
[352182489,1738979452212,-1008.48,0.00011369,2]
[352182490,1738979452222,-500.0,0.00011369,2]
[352182491,1738979452231,-503.39976522,0.00011369,2]
[352182492,1738979452240,-503.36346878,0.00011369,2]
[352182493,1738979452250,-789.33,0.00011369,2]
[352182494,1738979452259,-507.65491055,0.00011369,2]
[352182495,1738979452268,-844.48,0.00011369,2]
[352182496,1738979452278,-500.0,0.00011369,2]
[352182497,1738979452287,-502.00504471,0.00011369,2]
[352182498,1738979452296,-3477.33,0.00011369,2]
[352182499,1738979452306,-500.0,0.00011369,2]
[352182500,1738979452315,-504.76034347,0.00011369,2]
[352182501,1738979452325,-500.0,0.00011369,2]
[352182502,1738979452334,-525.73727726,0.00011369,2]
[352182503,1738979452344,-504.86134774,0.00011369,2]
[352182504,1738979452354,-151.0,0.00011369,2]
[352182505,1738979452363,-521.96,0.00011369,2]
[352182506,1738979452372,-505.23164088,0.00011369,2]
[352182507,1738979452382,-151.0,0.00011369,2]
[352182508,1738979452391,-1149.0,0.00011369,2]
[352182509,1738979452401,-500.0,0.00011369,2]
[352182510,1738979452410,-500.0,0.00011369,2]
[352182511,1738979452419,-33591.09,0.00011369,2]
[352182512,1738979452429,-506.06213255,0.00011369,2]
[352182513,1738979452438,-500.0,0.00011369,2]
[352182514,1738979452448,-506.78214723,0.00011369,2]
[352182515,1738979452457,-2738.07,0.00011369,2]
[352182516,1738979452466,-151.0,0.00011369,2]
[352182517,1738979452475,-500.0,0.00011369,2]
[352182518,1738979452483,-502.00216237,0.00011369,2]
[352182519,1738979452494,-500.0,0.00011369,2]
[352182520,1738979452503,-500.0,0.00011369,2]
[352182521,1738979452512,-504.07006092,0.00011369,2]
[352182522,1738979452521,-1274.52,0.00011369,2]
[352182523,1738979452530,-503.20879632,0.00011369,2]
[352182524,1738979452539,-1346.66,0.00011369,2]
[352182525,1738979452548,-501.94267563,0.00011369,2]
[352182526,1738979452557,-506.09810326,0.00011369,2]
[352182527,1738979452565,-504.5101064,0.00011369,2]
[352182528,1738979452574,-505.09556162,0.00011369,2]
[352182529,1738979452583,-746.29,0.00011369,2]
[352182530,1738979452591,-1325.41,0.00011369,2]
[352182531,1738979452600,-11361.05,0.00011369,2]
[352182532,1738979452610,-505.58482553,0.00011369,2]
[352182533,1738979452619,-503.02824521,0.00011369,2]
[352182534,1738979452628,-504.82923912,0.00011369,2]
[352182535,1738979452637,-500.0,0.00011369,2]
[352182536,1738979452646,-500.0,0.00011369,2]
[352182537,1738979452655,-510.36582179,0.00011369,2]
[352182538,1738979452664,-504.78991314,0.00011369,2]
[352182539,1738979452673,-508.14298753,0.00011369,2]
[352182540,1738979452682,-1269.56,0.00011369,2]
[352182541,1738979452692,-500.0,0.00011369,2]
[352182542,1738979452700,-504.48590522,0.00011369,2]
[352182543,1738979452709,-320.47846163,0.00011369,2]
[352182544,1738979452719,-500.0,0.00011369,2]
[352182545,1738979452728,-504.07589323,0.00011369,2]
[352182546,1738979452861,-503.79633868,0.00011369,2]
[352182547,1738979452871,-739.46,0.00011369,2]
[352182548,1738979452880,-151.0,0.00011369,2]
[352182549,1738979452888,-503.40614959,0.00011369,2]
[352182550,1738979452897,-503.42606639,0.00011369,2]
[352182551,1738979452907,-502.68920716,0.00011369,2]
[352182552,1738979452916,-1729.3,0.00011369,2]
[352182553,1738979452925,-796.89,0.00011369,2]
[352182554,1738979452934,-505.34376234,0.00011369,2]
[352182555,1738979452945,-151.0,0.00011369,2]
[352182556,1738979452955,-503.1037348,0.00011369,2]
[352182557,1738979452964,-502.63498747,0.00011369,2]
[352182558,1738979452973,-504.23224709,0.00011369,2]
[352182559,1738979452982,-506.46975725,0.00011369,2]
[352182560,1738979452991,-1112.48,0.00011369,2]
[352182561,1738979453000,-651.14,0.00011369,2]
[352182562,1738979453009,-503.81779582,0.00011369,2]
[352182563,1738979453018,-501.94370888,0.00011369,2]
[352182564,1738979453030,-284.05554952,0.00011369,2]
[352182565,1738979453040,-502.25986503,0.00011369,2]
[352182566,1738979453048,-638.34864915,0.00011369,2]
[352182567,1738979453057,-501.40233573,0.00011369,2]
[352182568,1738979453066,-504.26442328,0.00011369,2]
[352182569,1738979453074,-500.0,0.00011369,2]
[352182570,1738979453083,-503.62015603,0.00011369,2]
[352182571,1738979453092,-503.48763036,0.00011369,2]
[352182572,1738979453101,-500.0,0.00011369,2]
[352182573,1738979453110,-504.25242799,0.00011369,2]
[352182574,1738979453119,-2236.21,0.00011369,2]
[352182575,1738979453129,-327.4861276,0.00011369,2]
[352182576,1738979453138,-500.0,0.00011369,2]
[352182577,1738979453147,-502.87330247,0.00011369,2]
[352182578,1738979453156,-1362.48,0.00011369,2]
[352182579,1738979453165,-4270.89,0.00011369,2]
[352182580,1738979453174,-2180.49,0.00011369,2]
[352182581,1738979453183,-500.0,0.00011369,2]
[352182582,1738979453193,-540.01,0.00011369,2]
[352182583,1738979453203,-500.0,0.00011369,2]
[352182584,1738979453212,-301.25176413,0.00011369,2]
[352182585,1738979453221,-505.53786453,0.00011369,2]
[352182586,1738979453230,-500.0,0.00011369,2]
[352182587,1738979453239,-1068.9,0.00011369,2]
[352182588,1738979453248,-987.54,0.00011369,2]
[352182589,1738979453257,-952.52,0.00011369,2]
[352182590,1738979453266,-504.3582505,0.00011369,2]
[352182591,1738979453276,-2463.44,0.00011369,2]
[352182592,1738979453285,-501.85631914,0.00011369,2]
[352182593,1738979453295,-477.04297228,0.00011369,2]
[352182594,1738979453304,-500.0,0.00011369,2]
[352182595,1738979453314,-152.363897,0.00011369,2]
[352182596,1738979453324,-505.3538635,0.00011369,2]
[352182597,1738979453334,-505.48159274,0.00011369,2]
[352182598,1738979453344,-504.18997682,0.00011369,2]
[352182599,1738979453354,-151.0,0.00011369,2]
[352182600,1738979453363,-500.0,0.00011369,2]
[352182601,1738979453372,-637.85,0.00011369,2]
[352182602,1738979453382,-508.86808716,0.00011369,2]
[352182603,1738979453391,-505.32079779,0.00011369,2]
[352182604,1738979453401,-504.28951863,0.00011369,2]
[352182605,1738979453410,-151.0,0.00011369,2]
[352182606,1738979453420,-504.1625991,0.00011369,2]
[352182607,1738979453429,-3069.74,0.00011369,2]
[352182608,1738979453439,-543.16,0.00011369,2]
[352182609,1738979453448,-917.91,0.00011369,2]
[352182610,1738979453458,-500.0,0.00011369,2]
[352182611,1738979453467,-566.42,0.00011369,2]
[352182612,1738979453476,-343.268662,0.00011369,2]
[352182613,1738979453486,-825.57,0.00011369,2]
[352182614,1738979453495,-151.933081,0.00011369,2]
[352182615,1738979453504,-502.16586484,0.00011369,2]
[352182616,1738979453514,-503.86530471,0.00011369,2]
[352182617,1738979453523,-343.268662,0.00011369,2]
[352182618,1738979453532,-281.264033,0.00011369,2]
[352182619,1738979453541,-503.52056844,0.00011369,2]
[352182620,1738979453551,-1160.37,0.00011369,2]
[352182621,1738979453560,-281.264033,0.00011369,2]
[352182622,1738979453570,-500.0,0.00011369,2]
[352182623,1738979453579,-500.0,0.00011369,2]
[352182624,1738979453588,-506.03260628,0.00011369,2]
[352182625,1738979453598,-500.0,0.00011369,2]
[352182626,1738979453607,-500.0,0.00011369,2]
[352182627,1738979453616,-405.98396804,0.00011369,2]
[352182628,1738979453625,-549.94390632,0.00011369,2]
[352182629,1738979453634,-580.47,0.00011369,2]
[352182630,1738979453644,-573.64,0.00011369,2]
[352182631,1738979453653,-2810.81341539,0.00011406,2]
[352182632,1738979453662,-151.0,0.000115,2]
[352182633,1738979453671,-151.0,0.000115,2]
[352182634,1738979453680,-500.0,0.00011506,2]
[352182635,1738979453690,-500.0,0.00011506,2]
[352182636,1738979453699,-500.0,0.00011506,2]
[352182637,1738979453708,-500.0,0.00011506,2]
[352182638,1738979453717,-451.23272681,0.00011506,2]
[352182639,1738979453726,-500.0,0.00011506,2]
[352182640,1738979453736,-267.07684069,0.00011506,2]
[352182641,1738979453745,-500.0,0.00011506,2]
[352182642,1738979453754,-657.07,0.00011506,2]
[352182643,1738979453763,-502.57529349,0.00011506,2]
[352182644,1738979453774,-157.469997,0.00011506,2]
[352182645,1738979453785,-601.15,0.00011506,2]
[352182646,1738979453796,-151.0,0.00011506,2]
[352182647,1738979453807,-829.19,0.00011506,2]
[352182648,1738979453817,-530.17,0.00011506,2]
[352182649,1738979453827,-593.69437413,0.00011506,2]
[352182650,1738979453837,-500.0,0.00011506,2]
[352182651,1738979453846,-500.0,0.00011506,2]
[352182652,1738979453855,-500.0,0.00011506,2]
[352182653,1738979453865,-151.0,0.00011506,2]
[352182654,1738979453875,-500.0,0.00011506,2]
[352182655,1738979453885,-1053.48,0.00011506,2]
[352182656,1738979453894,-151.637663,0.00011506,2]
[352182657,1738979453904,-1033.63,0.00011506,2]
[352182658,1738979453913,-460.98465889,0.00011506,2]
[352182659,1738979453924,-795.31,0.00011506,2]
[352182660,1738979453933,-500.0,0.00011506,2]
[352182661,1738979453945,-500.0,0.00011506,2]
[352182662,1738979453957,-582.83976648,0.00011506,2]
[352182663,1738979453967,-189.016649,0.00011506,2]
[352182664,1738979453977,-189.016649,0.00011506,2]
[352182665,1738979453990,-500.0,0.00011506,2]
[352182666,1738979454000,-500.0,0.00011506,2]
[352182667,1738979454009,-503.68311422,0.00011506,2]
[352182668,1738979454021,-151.0,0.00011506,2]
[352182669,1738979454032,-500.0,0.00011506,2]
[352182670,1738979454042,-502.55940711,0.00011506,2]
[352182671,1738979454051,-937.71,0.00011506,2]
[352182672,1738979454060,-506.34345746,0.00011506,2]
[352182673,1738979454070,-151.0,0.00011506,2]
[352182674,1738979454079,-158.101927,0.00011506,2]
[352182675,1738979454090,-503.57704402,0.00011506,2]
[352182676,1738979454099,-504.40682222,0.00011506,2]
[352182677,1738979454109,-500.0,0.00011506,2]
[352182678,1738979454118,-504.71003298,0.00011506,2]
[352182679,1738979454127,-771.92,0.00011506,2]
[352182680,1738979454136,-502.43963314,0.00011506,2]
[352182681,1738979454145,-505.53597003,0.00011506,2]
[352182682,1738979454154,-500.0,0.00011506,2]
[352182683,1738979454163,-2484.5,0.00011506,2]
[352182684,1738979454172,-503.6510775,0.00011506,2]
[352182685,1738979454181,-572.57,0.00011506,2]
[352182686,1738979454190,-503.99060802,0.00011506,2]
[352182687,1738979454200,-503.20361276,0.00011506,2]
[352182688,1738979454209,-151.475684,0.00011506,2]
[352182689,1738979454218,-500.0,0.00011506,2]
[352182690,1738979454227,-10233.27,0.00011506,2]
[352182691,1738979454237,-1134.68,0.00011506,2]
[352182692,1738979454246,-530.41,0.00011506,2]
[352182693,1738979454255,-243.93100471,0.00011506,2]
[352182694,1738979454265,-500.0,0.00011506,2]
[352182695,1738979454275,-503.4192844,0.00011506,2]
[352182696,1738979454285,-1264.89,0.00011506,2]
[352182697,1738979454294,-1008.48,0.00011506,2]
[352182698,1738979454304,-504.65100276,0.00011506,2]
[352182699,1738979454313,-789.33,0.00011506,2]
[352182700,1738979454323,-844.48,0.00011506,2]
[352182701,1738979454332,-225.27492638,0.00011506,2]
[352182702,1738979454341,-3477.33,0.00011506,2]
[352182703,1738979454350,-500.0,0.00011506,2]
[352182704,1738979454359,-531.27797037,0.00011506,2]
[352182705,1738979454368,-521.96,0.00011506,2]
[352182706,1738979454377,-1149.0,0.00011506,2]
[352182707,1738979454388,-503.26882723,0.00011506,2]
[352182708,1738979454398,-500.0,0.00011506,2]
[352182709,1738979454407,-33591.09,0.00011506,2]
[352182710,1738979454416,-503.3905113,0.00011506,2]
[352182711,1738979454426,-2738.07,0.00011506,2]
[352182712,1738979454435,-504.6651065,0.00011506,2]
[352182713,1738979454445,-500.0,0.00011506,2]
[352182714,1738979454454,-503.5,0.00011506,2]
[352182715,1738979454464,-1274.52,0.00011506,2]
[352182716,1738979454474,-1346.66,0.00011506,2]
[352182717,1738979454483,-288.443327,0.00011506,2]
[352182718,1738979454492,-746.29,0.00011506,2]
[352182719,1738979454502,-288.443327,0.00011506,2]
[352182720,1738979454511,-1325.41,0.00011506,2]
[352182721,1738979454521,-11361.05,0.00011506,2]
[352182722,1738979454530,-177.07516595,0.00011506,2]
[352182723,1738979454539,-500.0,0.00011506,2]
[352182724,1738979454549,-1269.56,0.00011506,2]
[352182725,1738979454558,-500.0,0.00011506,2]
[352182726,1738979454567,-500.0,0.00011506,2]
[352182727,1738979454577,-739.46,0.00011506,2]
[352182728,1738979454586,-1729.3,0.00011506,2]
[352182729,1738979454595,-151.0,0.00011506,2]
[352182730,1738979454605,-796.89,0.00011506,2]
[352182731,1738979454614,-151.0,0.00011506,2]
[352182732,1738979454623,-1112.48,0.00011506,2]
[352182733,1738979454633,-151.0,0.00011506,2]
[352182734,1738979454642,-651.14,0.00011506,2]
[352182735,1738979454651,-500.0,0.00011506,2]
[352182736,1738979454661,-500.0,0.00011506,2]
[352182737,1738979454670,-2236.21,0.00011506,2]
[352182738,1738979454680,-289.69543609,0.00011506,2]
[352182739,1738979454689,-1362.48,0.00011506,2]
[352182740,1738979454699,-4270.89,0.00011506,2]
[352182741,1738979454708,-2180.49,0.00011506,2]
[352182742,1738979454717,-160.23117771,0.00011506,2]
[352182743,1738979454726,-540.01,0.00011506,2]
[352182744,1738979454735,-515.28008606,0.00011506,2]
[352182745,1738979454745,-500.0,0.00011506,2]
[352182746,1738979454754,-1068.9,0.00011506,2]
[352182747,1738979454763,-987.54,0.00011506,2]
[352182748,1738979454772,-952.52,0.00011506,2]
[352182749,1738979454782,-2463.44,0.00011506,2]
[352182750,1738979454791,-507.64978274,0.00011506,2]
[352182751,1738979454800,-500.0,0.00011506,2]
[352182752,1738979454809,-637.85,0.00011506,2]
[352182753,1738979454818,-3069.74,0.00011506,2]
[352182754,1738979454826,-543.16,0.00011506,2]
[352182755,1738979454835,-917.91,0.00011506,2]
[352182756,1738979454844,-500.0,0.00011506,2]
[352182757,1738979454853,-566.42,0.00011506,2]
[352182758,1738979454863,-825.57,0.00011506,2]
[352182759,1738979454872,-1160.37,0.00011506,2]
[352182760,1738979454881,-500.0,0.00011506,2]
[352182761,1738979454890,-500.0,0.00011506,2]
[352182762,1738979454899,-500.0,0.00011506,2]
[352182763,1738979454908,-500.0,0.00011506,2]
[352182764,1738979454917,-580.47,0.00011506,2]
[352182765,1738979454926,-573.64,0.00011506,2]
[352182766,1738979454935,-367.06253242,0.00011521,2]
[352182767,1738979454947,-1000.0,0.00011521,2]
[352182768,1738979454957,-1000.0,0.00011521,2]
[352182769,1738979454966,-13265.39216455,0.00011551,2]
[352182770,1738979454975,-560.785,0.00011599,2]
[352182771,1738979454984,-151.0,0.000116,2]
[352182772,1738979454994,-500.0,0.00011643,2]
[352182773,1738979455003,-500.0,0.00011643,2]
[352182774,1738979455012,-513.58240429,0.00011643,2]
[352182775,1738979455022,-513.705744,0.00011643,2]
[352182776,1738979455032,-500.0,0.00011643,2]
[352182777,1738979455041,-513.705744,0.00011643,2]
[352182778,1738979455051,-500.0,0.00011643,2]
[352182779,1738979455060,-500.0,0.00011643,2]
[352182780,1738979455070,-151.0,0.00011643,2]
[352182781,1738979455079,-151.0,0.00011643,2]
[352182782,1738979455088,-657.07,0.00011643,2]
[352182783,1738979455098,-601.15,0.00011643,2]
[352182784,1738979455119,-829.19,0.00011643,2]
[352182785,1738979455129,-530.17,0.00011643,2]
[352182786,1738979455139,-561.76027084,0.00011643,2]
[352182787,1738979455148,-500.0,0.00011643,2]
[352182788,1738979455158,-500.0,0.00011643,2]
[352182789,1738979455168,-239.21151646,0.00011643,2]
[352182790,1738979455177,-740.50869243,0.00011643,2]
[352182791,1738979455678,-2671.46,0.00010958,2]
[352182792,1738979455687,-500.0,0.00010958,2]
[352182793,1738979455696,-500.0,0.00010958,2]
[352182794,1738979455850,-6081.32381582,0.00010959,2]
[352182795,1738979456123,-500.0,0.00010959,2]
[352182797,1738979613854,3000.0,0.00014,30]
[352182798,1738979614338,3000.0,0.0001401,30]
[352182799,1738979614927,3000.0,0.0001402,30]
[352182865,1738980366077,367.0,0.00018,120]
[352182922,1738980632540,-300.0,8.219e-05,2]
[352182924,1738980632551,-503.0,8.219e-05,2]
[352182926,1738980632561,-685.0,0.0001,2]
[352182928,1738980632570,-1000.0,0.000108,2]
[352182930,1738980632580,-151.57877793,0.00010951,2]
[352182932,1738980632590,-300.0,0.00010956,2]
[352182934,1738980632600,-405.12926831,0.00010957,2]
[352182936,1738980632609,-177.82309923,0.00010957,2]
[352182938,1738980632619,-348.94316642,0.00010957,2]
[352182941,1738980632629,-500.0,0.00010957,2]
[352182943,1738980632638,-500.0,0.00010957,2]
[352182945,1738980632648,-500.0,0.00010957,2]
[352182947,1738980632658,-500.0,0.00010957,2]
[352182949,1738980632668,-500.0,0.00010957,2]
[352182951,1738980632677,-500.0,0.00010957,2]
[352182953,1738980632687,-500.0,0.00010957,2]
[352182955,1738980632696,-500.0,0.00010957,2]
[352182957,1738980632706,-500.0,0.00010957,2]
[352182959,1738980632715,-500.0,0.00010957,2]
[352182961,1738980632725,-500.0,0.00010957,2]
[352182963,1738980632735,-500.0,0.00010957,2]
[352182964,1738980632744,-500.0,0.00010957,2]
[352182965,1738980632754,-255.21947585,0.00010957,2]
[352182966,1738980632764,-500.0,0.00010957,2]
[352182967,1738980632773,-500.0,0.00010957,2]
[352182971,1738980633015,-500.0,0.00010957,2]
[352182973,1738980633025,-500.0,0.00010957,2]
[352182975,1738980633034,-500.0,0.00010957,2]
[352182977,1738980633044,-500.0,0.00010957,2]
[352182979,1738980633053,-500.0,0.00010957,2]
[352182981,1738980633063,-500.0,0.00010957,2]
[352182983,1738980633072,-500.0,0.00010957,2]
[352182985,1738980633081,-500.0,0.00010957,2]
[352182987,1738980633090,-500.0,0.00010957,2]
[352182989,1738980633100,-500.0,0.00010957,2]
[352182991,1738980633109,-500.0,0.00010957,2]
[352182993,1738980633118,-481.08127687,0.00010957,2]
[352182995,1738980633127,-500.0,0.00010957,2]
[352182997,1738980633137,-44.89634548,0.00010957,2]
[352183070,1738980638317,-455.10365452,0.00010957,2]
[352183071,1738980638328,-246.69633705,0.00010957,2]
[352183072,1738980638414,-253.30366295,0.00010957,2]
[352183073,1738980638424,-500.0,0.00010957,2]
[352183074,1738980638433,-498.81767576,0.00010958,2]
[352183075,1738980638442,-274.77728857,0.00010958,2]
[352183076,1738980638451,-546.8391946,0.00010958,2]
[352183077,1738980638461,-502.50769796,0.00010958,2]
[352183078,1738980638470,-501.3062286,0.00010958,2]
[352183079,1738980638479,-502.47413302,0.00010958,2]
[352183080,1738980638488,-501.30971949,0.00010958,2]
[352183081,1738980638497,-501.27627951,0.00010958,2]
[352183082,1738980638506,-501.96272976,0.00010958,2]
[352183083,1738980638516,-502.5413859,0.00010958,2]
[352183084,1738980638525,-313.67068378,0.00010958,2]
[352183085,1738980638534,-502.42290432,0.00010958,2]
[352183086,1738980638543,-501.29928733,0.00010958,2]
[352183087,1738980638552,-501.97064979,0.00010958,2]
[352183088,1738980638561,-501.99269406,0.00010958,2]
[352183089,1738980638570,-389.55913362,0.00010958,2]
[352183090,1738980638580,-500.0,0.00010958,2]
[352183091,1738980638589,-602.1279761,0.00010958,2]
[352183092,1738980638598,-502.38163641,0.00010958,2]
[352183093,1738980638607,-500.0,0.00010958,2]
[352183094,1738980638616,-500.0,0.00010958,2]
[352183095,1738980638625,-603.70953381,0.00010958,2]
[352183096,1738980638634,-500.0,0.00010958,2]
[352183097,1738980638644,-500.0,0.00010958,2]
[352183098,1738980638653,-500.12369152,0.00010958,2]
[352183099,1738980638662,-502.28959799,0.00010958,2]
[352183100,1738980638671,-500.0,0.00010958,2]
[352183101,1738980638680,-500.99157633,0.00010958,2]
[352183102,1738980638689,-501.06285476,0.00010958,2]
[352183103,1738980638699,-500.0,0.00010958,2]
[352183104,1738980638708,-85.77926332,0.00010958,2]
[352183105,1738980638722,-414.22073668,0.00010958,2]
[352183106,1738980638732,-500.0,0.00010958,2]
[352183107,1738980638741,-500.0,0.00010958,2]
[352183108,1738980638751,-500.0,0.00010958,2]
[352183109,1738980638760,-312.32428932,0.00010958,2]
[352183110,1738980638769,-500.0,0.00010958,2]
[352183111,1738980638779,-500.0,0.00010958,2]
[352183112,1738980638788,-500.0,0.00010958,2]
[352183113,1738980638799,-500.0,0.00010958,2]
[352183114,1738980638810,-188.58240381,0.00010958,2]
[352183115,1738980638819,-500.0,0.00010958,2]
[352183116,1738980638828,-359.89288213,0.00010958,2]
[352183117,1738980638838,-500.0,0.00010958,2]
[352183118,1738980638847,-500.0,0.00010958,2]
[352183119,1738980638858,-500.0,0.00010958,2]
[352183120,1738980638867,-500.0,0.00010958,2]
[352183121,1738980638877,-500.0,0.00010958,2]
[352183122,1738980638886,-464.19231225,0.00010958,2]
[352183123,1738980638896,-500.0,0.00010958,2]
[352183124,1738980638905,-500.0,0.00010958,2]
[352183125,1738980638917,-500.0,0.00010958,2]
[352183126,1738980638925,-500.0,0.00010958,2]
[352183127,1738980638934,-500.0,0.00010958,2]
[352183128,1738980638944,-502.67829577,0.00010958,2]
[352183129,1738980638954,-501.8204471,0.00010958,2]
[352183130,1738980638963,-500.0,0.00010958,2]
[352183131,1738980638973,-500.0,0.00010958,2]
[352183132,1738980638982,-502.73528685,0.00010958,2]
[352183133,1738980638991,-500.0,0.00010958,2]
[352183134,1738980639000,-500.0,0.00010958,2]
[352183135,1738980639009,-504.12540162,0.00010958,2]
[352183136,1738980639019,-500.0,0.00010958,2]
[352183137,1738980639028,-502.1630903,0.00010958,2]
[352183138,1738980639037,-500.0,0.00010958,2]
[352183139,1738980639046,-504.15464621,0.00010958,2]
[352183140,1738980639055,-500.0,0.00010958,2]
[352183141,1738980639064,-500.0,0.00010958,2]
[352183142,1738980639073,-500.0,0.00010958,2]
[352183143,1738980639082,-500.0,0.00010958,2]
[352183144,1738980639091,-500.0,0.00010958,2]
[352183145,1738980639099,-501.87304234,0.00010958,2]
[352183146,1738980639108,-500.0,0.00010958,2]
[352183147,1738980639117,-500.0,0.00010958,2]
[352183148,1738980639125,-500.0,0.00010958,2]
[352183149,1738980639135,-233.06913909,0.00010958,2]
[352183150,1738980639143,-501.57075618,0.00010958,2]
[352183151,1738980639152,-500.0,0.00010958,2]
[352183152,1738980639161,-500.67388786,0.00010958,2]
[352183153,1738980639170,-501.5712331,0.00010958,2]
[352183154,1738980639179,-500.0,0.00010958,2]
[352183155,1738980639188,-501.80053362,0.00010958,2]
[352183156,1738980639197,-500.0,0.00010958,2]
[352183157,1738980639206,-500.0,0.00010958,2]
[352183158,1738980639215,-500.0,0.00010958,2]
[352183159,1738980639224,-223.20504635,0.00010958,2]
[352183160,1738980639233,-500.0,0.00010958,2]
[352183161,1738980639242,-501.44126167,0.00010958,2]
[352183162,1738980639250,-500.0,0.00010958,2]
[352183163,1738980639259,-500.0,0.00010958,2]
[352183164,1738980639268,-500.0,0.00010958,2]
[352183165,1738980639277,-500.0,0.00010958,2]
[352183166,1738980639286,-500.0,0.00010958,2]
[352183167,1738980639296,-500.84893124,0.00010958,2]
[352183168,1738980639304,-500.0,0.00010958,2]
[352183169,1738980639314,-500.0,0.00010958,2]
[352183170,1738980639322,-501.00855051,0.00010958,2]
[352183171,1738980639334,-503.82382776,0.00010958,2]
[352183172,1738980639343,-500.0,0.00010958,2]
[352183173,1738980639352,-500.0,0.00010958,2]
[352183174,1738980639362,-500.0,0.00010958,2]
[352183175,1738980639371,-235.41344738,0.00010958,2]
[352183176,1738980639382,-500.72460788,0.00010958,2]
[352183177,1738980639391,-500.0,0.00010958,2]
[352183178,1738980639400,-505.58137603,0.00010958,2]
[352183179,1738980639411,-490.54659483,0.00010958,2]
[352183180,1738980639420,-500.0,0.00010958,2]
[352183181,1738980639429,-500.0,0.00010958,2]